Cogmind - Beta 13 @@@ ROGUE MODE // 2024.04.05 @ 22:47:32 Player: Ragonath Result: Destroyed by G-34 Mercenary with Small Laser Performance ------------- Evolutions (1) 500 Regions Visited (2) 400 Robots Destroyed (22) 110 Value Destroyed (631) 631 Prototype IDs (2) 40 Alien Tech Used (0) 0 Bonus (0) 0 TOTAL SCORE: 1681 Bonus ------- None Cogmind --------- Core Integrity 0/400 Matter 300/300 Energy 100/100 System Corruption 0% Temperature Cool (15) Movement Core (350) Ox6 Location -9/Materials Parts ------- > --- POWER (1) -------- (None) > --- PROPULSION (4) --- (None) > --- UTILITY (2) ------ Large Storage Unit Hacking Suite > --- WEAPON (2) ------- (None) > --- INVENTORY (15) --- Ion Engine Light Ion Engine Aluminum Leg Large Storage Unit Sensor Array Targeting Computer Improved Targeting Computer Improved Targeting Computer Improved Targeting Computer Core Shielding Utility Shielding Light Armor Plating Peak State ------------ > --- POWER ------------ Light Ion Engine > --- PROPULSION ------- Aluminum Leg Aluminum Leg Aluminum Leg Aluminum Leg > --- UTILITY ---------- Large Storage Unit Hacking Suite > --- WEAPON ----------- Particle Gun > --- INVENTORY -------- Ion Engine Light Ion Engine Aluminum Leg Large Storage Unit Sensor Array Targeting Computer Improved Targeting Computer Improved Targeting Computer Improved Targeting Computer Core Shielding Utility Shielding Light Armor Plating [Rating: 12] Favorites ----------- Power Light Ion Engine Engine Light Ion Engine Power Core Light Nuclear Core Propulsion Aluminum Leg Leg Aluminum Leg Utility Large Storage Unit Device Sensor Array Storage Large Storage Unit Hackware Hacking Suite Weapon Light Assault Rifle Energy Gun Particle Gun Ballistic Gun Light Assault Rifle Build | -11 -10 -9 ------- Run | Yrd Mat Mat Slots Evolved 2 | . . 2 Power . | . . . Propulsion 2 | . . 2 Utility . | . . . Weapon . | . . . Parts Attached 18 | 4 12 2 Power 4 | 1 3 . Engine 3 | 1 2 . Core 1 | . 1 . Reactor . | . . . Propulsion 7 | 2 3 2 Treads . | . . . Leg 7 | 2 3 2 Wheel . | . . . Hover . | . . . Flight . | . . . Utility 4 | 1 3 . Device 1 | . 1 . Storage 2 | 1 1 . Processor . | . . . Hackware 1 | . 1 . Protection . | . . . Artifact . | . . . Weapon 3 | . 3 . Energy Gun 1 | . 1 . Energy Cannon . | . . . Ballistic Gun 2 | . 2 . Ballistic Cannon . | . . . Launcher . | . . . Special Weapon . | . . . Impact Weapon . | . . . Slashing Weapon . | . . . Piercing Weapon . | . . . Special Melee Weapon . | . . . Unidentified Prototypes . | . . . Parts Lost 9 | . 3 6 Power 2 | . 1 1 Propulsion 5 | . 1 4 Utility . | . . . Weapon 2 | . 1 1 Highest Loss Streak 5 | . 2 5 To Critical Strikes . | . . . Average Slot Usage (%) 90 | . 92 75 Engine 12 | . 12 9 Leg 27 | . 26 35 Device 4 | . 4 . Storage 13 | . 14 11 Hackware 6 | . 5 11 Energy Gun 11 | . 11 8 Ballistic Gun 12 | . 13 . Naked Turns . | . . . Heaviest Build 28 | 8 28 26 Greatest Support 40 | 20 20 40 Greatest Overweight (x) 1 | . 1 . Average Overweight (x) . | . . . Largest Inventory Capacity 15 | 8 15 15 Average Capacity 12 | 7 12 15 Most Carried 15 | 3 15 13 Average Carried 8 | 1 8 12 Final Capacity 15 | 8 15 15 Final Carried 14 | 3 14 12 Class Distribution -------------------- 69% | Mutant 30% | Scavenger-Mutant Dominant Class ---------------- Mutant | -10/Materials Scavenger-Mutant | -9/Materials Resources | -11 -10 -9 ----------- Run | Yrd Mat Mat Matter Collected 407 | 174 233 . Remotely . | . . . Salvage Created 750 | . 626 124 Parts 44 | . 40 4 Haulers Intercepted . | . . . Recyclers Shooed . | . . . Parts Field Recycled . | . . . Retrieved Matter . | . . . Parts Self-Destructed . | . . . Prevented . | . . . Kills | -11 -10 -9 ------- Run | Yrd Mat Mat Combat Hostiles Destroyed 18 | . 15 3 Guns 18 | . 15 3 Classes Destroyed 6 | . 5 1 Recycler 1 | . 1 . Operator 2 | . 2 . Watcher 1 | . 1 . Swarmer 3 | . 3 . Grunt 14 | . 12 2 Sentry 1 | . . 1 Best Kill Streak 3 | . 3 3 Combat Bots Only 3 | . 3 3 Max Kills in Single Turn 1 | . 1 1 Gunslinging . | . . . Exploded . | . . . Melee . | . . . Uniques/NPCs Destroyed . | . . . Combat | -11 -10 -9 -------- Run | Yrd Mat Mat Hostile Shots Fired 184 | . 85 99 Missed 61 | . 25 36 Damage Taken 1491 | . 694 797 Core 555 | . 155 400 Absorbed by Shields . | . . . Core Remaining (%) 69 | 100 38 . Volleys Fired 75 | . 59 16 Largest 2 | . 2 1 Hottest 85 | . 85 65 Shots Fired 126 | . 110 16 Gun 126 | . 110 16 Cannon . | . . . Launcher . | . . . Special . | . . . Kinetic 72 | . 72 . Thermal 54 | . 38 16 Explosive . | . . . Electromagnetic . | . . . Robot Hit Streak 7 | . 7 6 Robot Miss Streak 5 | . 5 1 Penetration Max . | . . . Secondary Targets 4 | . 4 . Max Gunslinging Chain 1 | . 1 . Shots Hit Robots 75 | . 65 10 Core Hits 40 | . 36 4 Critical Kills . | . . . Critical Parts Destroyed . | . . . Critical Strikes 6 | . 5 1 Burn 6 | . 5 1 Melee Attacks . | . . . Impact . | . . . Slashing . | . . . Piercing . | . . . Sneak Attacks . | . . . Combat Hostiles . | . . . Follow-up Attacks . | . . . Damage Inflicted 883 | . 724 159 Guns 862 | . 703 159 Cannons . | . . . Explosions . | . . . Melee . | . . . Ramming 21 | . 21 . Kinetic 366 | . 366 . Thermal 496 | . 337 159 Explosive . | . . . Electromagnetic . | . . . Impact . | . . . Slashing . | . . . Piercing . | . . . Highest Corruption . | . . . Average Corruption . | . . . Corruption Purged . | . . . Corruption Blocked . | . . . Overload Shots . | . . . Overflow Damage . | . . . Projectiles . | . . . Explosions . | . . . Melee . | . . . Knockbacks . | . . . Impact . | . . . Kinetic . | . . . Secondary . | . . . Self-Inflicted Damage . | . . . Shots . | . . . Rammed . | . . . Targets Rammed 7 | . 7 . Kicked 7 | . 7 . Crushed . | . . . Highest Temperature 339 | . 272 339 Average Temperature 95 | . 76 173 Received Heat Transfer 738 | . 300 438 Effects 1 | . . 1 Shutdowns 1 | . . 1 Siege Activations . | . . . Robots Corrupted . | . . . Combat Hostiles . | . . . Parts Fried . | . . . Impact Corruptions . | . . . Robots Melted . | . . . Combat Hostiles . | . . . Parts Melted 5 | . 2 3 Heat Transferred 1628 | . 1184 444 Parts Sabotaged . | . . . Parts Stolen . | . . . Parts Stripped . | . . . Power Chain Reactions . | . . . Alert | -11 -10 -9 ------- Run | Yrd Mat Mat Peak Influence 232 | . 232 149 Initial 40 | . . 40 Average 67 | . 68 82 Maximum Alert Level 1 | . 1 . Low Security (%) 94 | 100 93 100 Level 1 5 | . 6 . Level 2 . | . . . Level 3 . | . . . Level 4 . | . . . Level 5 . | . . . High Security . | . . . Max Security . | . . . Squads Dispatched 5 | . 4 1 Investigation 3 | . 2 1 Extermination . | . . . Reinforcement 2 | . 2 . Assault . | . . . Garrison . | . . . Intercept . | . . . Searches Triggered . | . . . Construction Impeded . | . . . Haulers Reinforced . | . . . Active Scanning Responses . | . . . Cargo Convoy Interrupts . | . . . Stealth | -11 -10 -9 --------- Run | Yrd Mat Mat Distress Signals 3 | . 2 1 Communications Jammed . | . . . Distress Signals . | . . . Times Spotted 33 | . 23 10 Peak Tracking Total 6 | . 4 6 Tactical Retreats 1 | . . 1 Traps | -11 -10 -9 ------- Run | Yrd Mat Mat Traps Triggered 2 | . 2 . Indirectly . | . . . Trap Hack Attempts . | . . . Triggered . | . . . Disarmed . | . . . Reprogrammed . | . . . Reused . | . . . Traps Extracted . | . . . Installed . | . . . Triggered . | . . . Machines | -11 -10 -9 ---------- Run | Yrd Mat Mat Machines Disabled . | . . . Max in Single Turn . | . . . Machines Repaired . | . . . Machines Dismantled . | . . . Machines Sabotaged . | . . . Overloaded Fab Kills . | . . . Hacking | -11 -10 -9 --------- Run | Yrd Mat Mat Machines Accessed 7 | . 5 2 Terminals 7 | . 5 2 Fabricators . | . . . Repair Stations . | . . . Recycling Units . | . . . Scanalyzers . | . . . Garrison Access . | . . . Total Hacks 26 | . 19 7 Successful 15 | . 9 6 Failed 11 | . 10 1 Catastrophic 1 | . 1 . Database Lockouts . | . . . Manual . | . . . Terminals 26 | . 19 7 Fabricators . | . . . Repair Stations . | . . . Recycling Units . | . . . Scanalyzers . | . . . Garrison Access . | . . . Terminal Hacks 15 | . 9 6 Record 9 | . 5 4 Prototype ID Bank 1 | . 1 . Alert Level 1 | . 1 . Maintenance Status 1 | . 1 . Reinforcement Status 1 | . . 1 Zone Layout 2 | . 1 1 Fabricator Hacks . | . . . Repair Station Hacks . | . . . Recycling Unit Hacks . | . . . Scanalyzer . | . . . Garrison Access Hacks . | . . . Unauthorized Hacks . | . . . Terminals . | . . . Fabricators . | . . . Repair Stations . | . . . Recycling Units . | . . . Scanalyzers . | . . . Garrison Access . | . . . Data Cores Recovered . | . . . Used . | . . . Hacking Detections 5 | . 4 1 Full Trace Events 4 | . 3 1 Feedback Events . | . . . Feedback Blocked . | . . . Robot Schematics Acquired . | . . . Robots Built . | . . . Authchips . | . . . Time . | . . . Total Robot Build Rating . | . . . Part Schematics Acquired . | . . . Parts Built . | . . . Authchips . | . . . Time . | . . . Total Part Build Rating . | . . . Parts Repaired . | . . . Time . | . . . Parts Recycled . | . . . Recycled Matter . | . . . Retrieved Matter . | . . . Retrieved Components . | . . . Parts Scanalyzed . | . . . Part Schematics Acquired . | . . . Parts Damaged . | . . . Bothacking | -11 -10 -9 ------------ Run | Yrd Mat Mat Used RIF Installer . | . . . Robots Hacked . | . . . Non-combat . | . . . Combat . | . . . Robot Hacks Applied . | . . . Relay Couplers Released . | . . . Fabnet Peak Effective % . | . . . Robots Rewired . | . . . Allies Hacked . | . . . Hacks Repelled . | . . . Allies | -11 -10 -9 -------- Run | Yrd Mat Mat Total Allies . | . . . Largest Group . | . . . Highest-Rated Group . | . . . Highest-Rated Ally . | . . . Total Orders . | . . . Ally Attacks . | . . . Total Damage . | . . . Kills . | . . . Allies Corrupted . | . . . Allies Melted . | . . . Intel | -11 -10 -9 ------- Run | Yrd Mat Mat Robot Analysis Total . | . . . Derelict Logs Recovered . | . . . Drone Launches . | . . . Drone Recoveries . | . . . Exploration | -11 -10 -9 ------------- Run | Yrd Mat Mat Turns Passed 1608 | 65 1345 198 Spaces Moved 810 | 49 679 82 Core 6 | 6 . . Treads . | . . . Legs 804 | 43 679 82 Wheels . | . . . Hover . | . . . Flight . | . . . Fastest Speed 50 | 50 120 120 Average Speed 159 | 111 167 120 Slowest Speed 190 | 120 190 120 Overloaded Moves . | . . . Propulsion Burnouts . | . . . Robots Hopped . | . . . Cave-ins Triggered . | . . . Exploration Rate (%) 34 | 3 86 13 Regions Visited 2 Branch Regions . Pre-discovered Areas . | . . . Known Exits Taken . | . . . Unknown Exits Taken 2 | 1 1 . Scrap Searched . | . . . Spaces Dug . | . . . Terrain Destroyed . | . . . Melee . | . . . Projectile . | . . . AOE . | . . . Terrain Rammed . | . . . Walls Destroyed . | . . . Machines Disabled . | . . . Actions | -11 -10 -9 --------- Run | Yrd Mat Mat Total 1009 | 59 784 166 Wait 69 | . 3 66 Move 808 | 48 678 82 Hop . | . . . Pick Up 28 | 7 21 . Fast Attach . | . . . Attach 13 | 4 7 2 Detach . | . . . Swap 5 | . 5 . Drop 4 | . 4 . Fire 75 | . 59 16 Melee . | . . . Ram . | . . . Kick 7 | . 7 . Crush . | . . . Escape Stasis . | . . . Rewire . | . . . Trap . | . . . Miscellaneous . | . . . Route ------- -11/Scrapyard -10/Materials (discovered 4 exits: *Mat x2 / [*Min x2]) -9/Materials History --------- Turn | Location | Event 4 | -11/Scrapyard | Discovered new exit (range 16) 66 | -11/Scrapyard | Entered Materials 307 | -10/Materials | Discovered new exit (range 8) 317 | -10/Materials | Build established: Mutant 488 | -10/Materials | Discovered new exit (range 15) 1192 | -10/Materials | Discovered new exit (range 8) 1241 | -10/Materials | Core integrity fell below 50% 1369 | -10/Materials | Discovered new exit (range 8) 1409 | -10/Materials | Build established: Scavenger-Mutant 1411 | -10/Materials | Entered another Materials area 1411 | -9/Materials | Evolved 2 slots: Propulsion x2 1593 | -9/Materials | Core integrity fell below 50% 1606 | -9/Materials | Core integrity fell below 20% 1609 | -9/Materials | Destroyed by G-34 Mercenary with Small Laser Last Messages --------------- Sml. Laser melted. G-34 Mercenary destroyed. Y-45 Defender suffers critical hit (Burn). Beam Rifle melted. Y-45 Defender destroyed. Power failure, Lgt. Ion Engine shutdown. U-05 Engineer destroyed. K-01 Serf collects debris. Particle Gun destroyed. K-01 Serf collects debris. T-07 Excavator destroyed. K-01 Serf collects debris. Lgt. Ion Engine destroyed. K-01 Serf collects debris. K-01 Serf destroyed. Aluminum Leg destroyed. A-02 Transporter destroyed. Aluminum Leg destroyed. K-01 Serf collects debris. K-01 Serf destroyed. Map ----- +----------------------------------------------------+ | +??????????????????????????????????????????????? | | #??????????????????????????????????????????????? | | #????????????# """ """ #???????????????????????? | | #????????????# """ """ #???????????????????????? | | #????????????# #???????????????????????? | | #????????????# #???????????????????????? | | #????????????# #???????????????????????? | | #????????????#################?????????????????? | | ############????????????# ?????????????????? | | #????????????# """ ?????????????????? | | #????????????# """ ?????????????????? | | #######??????# """ ?????????????????? | | #### # #??????# ?????????????????? | | #??# # #??????# """ ?????????????????? | | ! !#??# # [[ !#??????# """ ?????????????????? | | #!!!!##??# + [ ######## """ ?????????????????? | | #######??# # #! # ?????????????????? | | ?????????# # "T" # T ######?????????????????? | | ?????????# # # #??????????????????????? | | ?????????# ####### #??????????????????????? | | ?????????# #?????# #??????????????????????? | | ####?????# #?????# #??????????????????????? | | ####### #??#######+############ ?????????? | | #??# !==!%=[|g!! u ????????? | | #??# [!%[==w%*!g[* ^ ????????? | | #??# %%*%!@[[g![% ????????? | | ! ####### #??# ##############???????????????? | | ########## #??# ##############???????????????? | | # # #??# # ????????????????? | | # T # #### # T #????????????????? | | # # # ?????????????????? | | # + + """ """ ?????????????????? | | # # # """ """ ?????????????????? | | # """"" # ###+####??""" "?????????????????????? | | # """"" # # ?????? ?????????????????????? | | # """"" # # """ #??????##????????????????????? | | # # # """ #????????????????????????????? | | ########## # """ #????????????????????????????? | | ?????????# # #????????????????????????????? | | ????????? # #????????????????????????????? | | ????????## ##########????????????????????????????? | | ?????????# ??????????????????????????????????????? | | ?????????#/??????????????????????????????????????? | | ????????? ??????????????????????????????????????? | | ????????? ??????????????????????????????????????? | | ????????? ??????????????????????????????????????? | | ????????? ??????????????????????????????????????? | | ????????? ??????????????????????????????????????? | | ?????????????????????????????????????????????????? | | ?????????????????????????????????????????????????? | +----------------------------------------------------+ Best States ------------- Heat Dissipation 28 Energy Generation 14 Energy Capacity 160 Matter Stores 300 Matter Capacity 300 Sight Range 16 Robot Scan Range 14 Terrain Scan Density 10 Evasion (%) 55 Offensive Hacking 10 Item Schematics ----------------- None Robot Schematics ------------------ None Fabricated ------------ Nothing Alien Tech Used ----------------- None Achievements -------------- None Challenges ------------ None Game ------ Seed ContainmentMiniFacilitator Manual? 0 Play Time 00:26:01 Cumulative 2.8 hours Start 2024.04.05 @ 22:13:30 End 2024.04.05 @ 22:47:32 Sessions 1 Manual Loads 0 Difficulty Rogue Special Mode None Game No. 7 Rogue 7 Adventurer 0 Explorer 0 Win Type - Total 0 Types 0/0/0/0/0/0/0/0/0 Lore% 3 Gallery% 5 Achievement% 4 Wizard Run 0 Options --------- Layout 1 ASCII 0 Keyboard 0 Movement Mouse Keybinds 0 Fullscreen 1 Font 32/SmallcapsGlow Map View 50x35 Zoom Use 0% Tactical HUD 0 Map Filters NONE Filters NONE Steam 1 RUN: a374de9d-4373-46bc-950f-f466a8e4d162